bitfinex-derivatives/quotes_ETHF0:USTF0_20260125
["timestamp","ask_amount","ask_price","bid_price","bid_amount"]
[1769372454207,4.46362272,2808.5,2807.4,10.3409775]
[1769372454407,2.12070731,2808.7,2807.4,10.3409775]
[1769372454607,4.46516212,2808.6,2807.4,10.3409775]
[1769372454807,4.46516212,2808.5,2807.4,10.3409775]
[1769372455009,2.12070731,2808.7,2807.4,10.3409775]
[1769372455212,4.46558073,2808.6,2807.4,10.3409775]
[1769372455506,4.46558073,2808.5,2807.4,10.3409775]
[1769372455698,2.12070731,2808.7,2807.4,10.3409775]
[1769372455900,4.46513322,2808.6,2807.4,10.3409775]
[1769372456103,4.46513322,2808.5,2807.5,3.46621233]
[1769372456302,2.12070731,2808.7,2807.5,3.46621233]
[1769372456496,4.46527436,2808.6,2807.5,3.46621233]
[1769372456711,0.88676517,2808.2,2807.0,3.64808111]
[1769372456906,0.88676517,2808.2,2807.1,5.996]
[1769372459611,2.11794763,2808.5,2807.1,5.996]
[1769372459810,4.46813992,2808.4,2807.1,5.996]
[1769372460003,4.46813992,2808.3,2807.1,5.996]
[1769372460203,2.11794763,2808.5,2807.1,5.996]
[1769372460405,4.46823763,2808.4,2807.1,5.996]
[1769372460607,4.46823763,2808.3,2807.1,5.996]
[1769372460805,2.11794763,2808.5,2807.1,5.996]
[1769372461101,4.4668829,2808.4,2807.0,3.46974111]
[1769372461306,4.4668829,2808.3,2807.1,5.653]
[1769372461502,2.11794763,2808.6,2807.1,5.653]
[1769372461503,3.58653662,2808.5,2807.1,5.653]
[1769372461698,4.46340077,2808.4,2807.1,5.653]
[1769372461902,4.46340077,2808.3,2807.1,5.653]
[1769372462100,3.58653662,2808.5,2807.1,5.653]
[1769372462412,4.46230287,2808.4,2807.1,5.653]
[1769372462614,4.46230287,2808.3,2807.1,5.653]
[1769372462913,3.58653662,2808.5,2807.1,5.653]
[1769372463115,4.46240129,2808.4,2807.1,5.653]
[1769372463311,3.58653662,2808.5,2807.1,5.653]
[1769372463514,4.46278688,2808.4,2807.1,5.653]
[1769372463715,3.58653662,2808.5,2807.1,5.653]
[1769372464012,4.46379562,2808.4,2807.1,5.653]
[1769372464212,3.58653662,2808.5,2807.2,6.001]
[1769372464413,4.46394854,2808.4,2807.2,6.001]
[1769372464614,3.58653662,2808.5,2807.2,6.001]
[1769372464814,4.46524126,2808.4,2807.2,6.001]
[1769372465013,8.09305115,2808.3,2807.0,0.00352878]
[1769372465312,8.09123742,2808.2,2807.1,2.173]
[1769372465513,4.46316952,2808.1,2807.1,2.173]
[1769372466011,4.46316952,2808.1,2807.1,5.75380551]
[1769372466312,2.11626559,2808.4,2807.1,5.75380551]
[1769372466712,6.58037841,2808.4,2807.1,5.75380551]
[1769372468614,4.46411282,2808.3,2807.1,3.58080551]
[1769372468818,2.11626559,2808.5,2807.3,3.58080551]
[1769372469019,4.46579804,2808.4,2807.3,3.58080551]
[1769372469219,2.11902527,2808.7,2807.3,3.58080551]
[1769372469422,4.47346307,2808.6,2807.3,3.58080551]
[1769372469614,4.47346307,2808.5,2807.3,3.58080551]
[1769372469816,2.11902527,2808.7,2807.3,3.58080551]
[1769372470017,4.47348624,2808.6,2807.3,3.58080551]
[1769372470219,4.47348624,2808.5,2807.3,3.58080551]
[1769372470514,0.00275968,2808.7,2807.3,3.58080551]
[1769372470719,4.47341313,2808.6,2807.3,3.58080551]
[1769372470922,4.47341313,2808.5,2807.4,6.003]
[1769372471224,2.11902527,2808.7,2807.4,6.003]
[1769372471422,4.47387035,2808.6,2807.4,6.003]
[1769372471624,4.47387035,2808.5,2807.4,6.003]
[1769372471820,2.11902527,2808.7,2807.4,6.003]
[1769372472022,4.47367756,2808.6,2807.4,6.003]
[1769372472223,4.47367756,2808.5,2807.4,9.58380551]
[1769372472431,0.00275968,2808.7,2807.5,3.58080551]
[1769372472728,4.47344833,2808.6,2807.5,3.58080551]
[1769372472927,0.00275968,2808.7,2807.5,3.58080551]
[1769372473125,4.4734196,2808.6,2807.5,3.58080551]
[1769372473332,0.00275968,2808.7,2807.5,3.58080551]
[1769372473523,4.47386714,2808.6,2807.5,3.58080551]
[1769372473727,0.00275968,2808.7,2807.5,3.58080551]
[1769372473927,4.47388478,2808.6,2807.5,3.58080551]
[1769372474228,0.00275968,2808.7,2807.5,3.58080551]
[1769372474428,4.47409698,2808.6,2807.4,6.003]
[1769372474624,0.00275968,2808.7,2807.4,6.003]
[1769372474825,4.47411399,2808.6,2807.4,6.003]
[1769372475029,0.00275968,2808.7,2807.4,6.003]
[1769372475234,4.47421629,2808.6,2807.4,6.003]
[1769372475431,0.00275968,2808.7,2807.4,6.003]
[1769372475732,4.47276485,2808.6,2807.5,6.006]
[1769372475931,0.00275968,2808.7,2807.5,6.006]
[1769372476233,4.47118818,2808.6,2807.5,6.006]
[1769372476433,0.00275968,2808.7,2807.5,6.006]
[1769372476635,4.47036131,2808.6,2807.5,6.006]
[1769372476833,0.00275968,2808.7,2807.5,6.006]
[1769372477033,4.47105123,2808.6,2807.5,6.006]
[1769372477233,0.00275968,2808.7,2807.5,6.006]
[1769372477437,4.47138541,2808.6,2807.5,6.006]
[1769372477732,0.00275968,2808.7,2807.5,6.006]
[1769372477934,4.47139621,2808.6,2807.5,6.006]
[1769372478128,0.00275968,2808.7,2807.5,6.006]
[1769372478436,4.47146207,2808.6,2807.2,7.44519318]
[1769372478631,3.74020757,2808.7,2807.6,2.446]
[1769372478935,4.47133125,2808.6,2807.6,2.446]
[1769372479136,3.74020757,2808.7,2807.6,2.446]
[1769372479328,4.47133107,2808.6,2807.6,2.446]
[1769372479634,3.74020757,2808.7,2807.6,2.446]
[1769372479833,4.47125169,2808.6,2807.6,2.446]
[1769372480033,3.74020757,2808.7,2807.6,2.446]
[1769372480233,4.47260322,2808.6,2807.6,2.446]
[1769372480433,3.74020757,2808.7,2807.6,2.446]
[1769372480631,4.47253795,2808.6,2807.6,2.446]
[1769372480827,3.74020757,2808.7,2807.6,2.446]
[1769372481022,4.47235847,2808.6,2807.6,2.446]
[1769372481231,0.00275968,2808.7,2807.6,2.446]
[1769372481831,0.00275968,2808.7,2807.6,6.06719318]
[1769372482032,0.00275968,2808.7,2807.7,3.62119318]
[1769372482629,2.11816527,2809.6,2807.9,4.50776442]
[1769372482830,3.73744789,2809.3,2807.9,3.62119318]
[1769372483635,3.74067223,2809.3,2807.9,3.62119318]
[1769372484135,3.74067223,2809.3,2808.0,5.653]
[1769372485837,3.74067223,2809.3,2808.1,6.01]
[1769372489436,0.00322434,2809.3,2808.1,6.01]
[1769372489741,0.00322434,2809.3,2808.2,3.62119318]
[1769372493637,0.00322434,2809.3,2808.3,6.014]
[1769372496045,0.00322434,2809.3,2808.4,6.019]
[1769372496647,0.00322434,2809.3,2807.6,3.64858676]
[1769372496941,4.68972471,2809.2,2807.7,6.009]
[1769372497144,4.68972471,2809.2,2807.7,9.65758676]
[1769372499251,4.68972471,2809.2,2807.8,6.025]
[1769372500245,4.68972471,2809.2,2807.3,7.47258676]
[1769372500453,4.68972471,2809.2,2807.5,9.67458676]
[1769372501349,8.27202724,2809.1,2807.5,9.67458676]
[1769372501550,3.80315347,2809.1,2807.5,9.67458676]
[1769372501752,3.80315347,2809.1,2807.6,3.64858676]
[1769372502154,0.00322434,2809.3,2807.6,3.64858676]
[1769372502354,4.4720446,2809.2,2807.6,3.64858676]
[1769372502556,0.00322434,2809.3,2807.6,3.64858676]
[1769372502857,4.47204036,2809.2,2807.6,4.535158]
[1769372503057,0.00322434,2809.3,2807.6,4.535158]
[1769372505360,0.00322434,2809.3,2807.8,3.64858676]
[1769372508161,0.00322434,2809.3,2808.0,3.64858676]
[1769372508459,0.00322434,2809.3,2808.2,3.64858676]
[1769372509351,0.258,2809.5,2808.2,3.64858676]
[1769372510466,0.26170118,2809.5,2808.2,3.64858676]
[1769372511258,0.26170118,2809.5,2808.3,3.64858676]
[1769372512068,2.11849832,2810.0,2808.3,3.64858676]
[1769372512968,2.12195329,2810.0,2808.3,3.64858676]
[1769372513267,4.47801514,2809.9,2808.5,3.64858676]
[1769372513460,4.47801514,2809.8,2808.5,3.64858676]
[1769372513765,0.00345497,2810.0,2808.5,3.64858676]
[1769372513966,0.00345497,2810.0,2808.6,9.69058676]
[1769372514158,0.00345497,2810.0,2808.7,3.64858676]
[1769372516861,0.00345497,2810.0,2808.7,6.45582027]
[1769372517562,0.00345497,2810.0,2808.8,3.64858676]
[1769372519570,0.00345497,2810.0,2808.9,6.041]
[1769372520173,0.00345497,2810.0,2809.0,3.64858676]
[1769372520373,0.00345497,2810.0,2809.0,7.47711545]
[1769372520667,3.80315347,2810.8,2809.1,3.64858676]
[1769372520869,4.47101761,2810.7,2809.2,3.64858676]
[1769372521067,2.11849832,2811.0,2809.2,4.535158]
[1769372521369,4.47089999,2810.9,2809.2,4.713358]
[1769372521572,5.92165179,2811.2,2809.3,3.64858676]
[1769372521766,0.00326528,2810.9,2809.3,3.64858676]
[1769372522562,3.80641875,2810.9,2809.3,3.64858676]
[1769372522766,3.80641875,2810.9,2809.4,5.651]
[1769372522964,3.80315347,2810.6,2809.3,3.562]
[1769372523163,3.80315347,2810.6,2809.4,2.089]
[1769372523772,3.76912129,2810.2,2809.0,0.00452869]
[1769372523964,4.65569253,2809.9,2809.1,2.482]
[1769372524469,4.65569253,2809.9,2809.0,0.00452869]
[1769372524776,4.65569253,2809.5,2808.6,3.562]
[1769372525071,4.65569253,2809.5,2807.7,3.68242084]
[1769372525072,3.76912129,2809.3,2808.4,2.089]
[1769372525569,3.76912129,2809.3,2808.4,2.09237859]
[1769372527772,2.11849832,2809.7,2808.4,2.09237859]
[1769372527963,4.45954246,2809.6,2808.4,2.09237859]
[1769372528264,3.76912129,2809.7,2808.4,2.09237859]
[1769372530766,3.76912129,2810.1,2808.5,3.68242084]
[1769372530972,4.46100837,2810.0,2808.5,3.68242084]
[1769372531172,4.46100837,2809.9,2808.5,3.68242084]
[1769372531373,3.76912129,2810.0,2808.5,3.68242084]
[1769372531673,4.46200052,2809.9,2808.5,3.68242084]
[1769372531872,3.76912129,2810.0,2808.5,3.68242084]
[1769372532073,4.46199726,2809.9,2808.5,3.68242084]
[1769372532375,3.76912129,2809.7,2808.6,2.479]
[1769372532979,3.76912129,2809.5,2808.6,2.479]
[1769372536376,3.76912129,2809.5,2808.4,0.00337859]
[1769372536578,3.76912129,2809.5,2808.5,2.481]
[1769372539180,3.76912129,2809.5,2808.4,0.00337859]
[1769372539480,3.76912129,2809.5,2808.4,2.48337859]
[1769372542975,3.76095885,2809.3,2807.1,0.17834]
[1769372543171,3.76095885,2809.1,2807.7,6.042]
[1769372544075,3.76095885,2809.1,2807.7,6.04511323]
[1769372547586,0.88639535,2808.9,2807.7,6.04511323]
[1769372547786,0.89010277,2808.9,2807.7,6.04511323]
[1769372548483,0.89010277,2808.9,2807.8,2.488]
[1769372550776,0.89010277,2808.9,2807.7,3.56611323]
[1769372550777,0.88639535,2808.3,2807.7,0.00311323]
[1769372550983,0.88639535,2808.3,2807.4,0.91153094]
[1769372551186,0.88639535,2808.1,2807.4,3.40053094]
[1769372551686,3.76095885,2808.7,2807.4,3.40053094]
[1769372551882,3.76095885,2808.7,2807.4,3.40477856]
[1769372552389,4.46876643,2808.6,2807.4,3.40477856]
[1769372552586,3.76095885,2808.7,2807.4,3.40477856]
[1769372552787,4.46774524,2808.6,2807.4,3.40477856]
[1769372552988,3.76095885,2808.7,2807.4,3.40477856]
[1769372553186,4.4687227,2808.6,2807.4,3.40477856]
[1769372553488,3.76095885,2808.7,2807.4,3.40477856]
[1769372553690,4.47101892,2808.6,2807.4,3.40477856]
[1769372553988,3.76095885,2808.7,2807.4,3.40477856]
[1769372554187,3.69608909,2808.5,2807.4,0.91577856]
[1769372554387,3.69608909,2808.5,2807.4,3.00577856]
[1769372555278,4.46994352,2808.4,2807.4,3.00577856]
[1769372555489,3.69608909,2808.5,2807.4,3.00577856]
[1769372555992,4.4685857,2808.4,2807.4,3.00577856]
[1769372556192,3.69608909,2808.5,2807.4,3.00577856]
[1769372558492,4.46536087,2808.4,2807.4,3.00577856]
[1769372558687,3.69608909,2808.5,2807.4,0.91577856]
[1769372558894,3.69608909,2808.3,2806.7,3.68677215]
[1769372559095,3.69608909,2808.1,2806.8,2.09]
[1769372559986,3.69608909,2808.1,2806.8,2.09268454]
[1769372561788,3.69608909,2808.1,2806.9,2.486]
[1769372562396,3.69608909,2808.0,2806.9,2.486]
[1769372562894,4.46234376,2807.9,2806.9,2.486]
[1769372563094,3.69608909,2808.0,2806.9,2.486]
[1769372563298,4.46236413,2807.9,2806.9,2.486]
[1769372563495,3.69608909,2808.0,2806.9,2.486]
[1769372563692,4.46130261,2807.9,2806.8,0.00268454]
[1769372563891,3.69608909,2808.0,2806.8,2.48868454]
[1769372564192,4.46163251,2807.9,2806.8,2.48868454]
[1769372564394,0.17827,2808.2,2806.8,6.17545669]
[1769372564395,2.29676832,2808.2,2806.8,6.17545669]
[1769372564599,4.4606015,2808.1,2806.8,6.17545669]
[1769372564797,4.4606015,2808.0,2806.8,6.17545669]
[1769372565095,2.29676832,2808.2,2806.8,6.17545669]
[1769372565296,4.46059708,2808.1,2806.8,6.17545669]
[1769372565497,4.46059708,2808.0,2806.8,6.17545669]
[1769372565699,2.29676832,2808.2,2806.8,6.17545669]
[1769372565902,4.46067886,2808.1,2806.8,6.17545669]
[1769372566102,4.46067886,2808.0,2806.8,6.17545669]
[1769372566398,2.29676832,2808.2,2806.8,6.17545669]
[1769372566598,4.46028777,2808.1,2806.8,6.17545669]
[1769372566896,31.7724791,2808.3,2805.9,2.487]
[1769372566897,3.69608909,2807.4,2805.9,2.487]
[1769372567201,4.46028777,2807.3,2806.0,3.68677215]
[1769372567388,2.11849832,2807.5,2806.0,3.68677215]
[1769372567591,4.45412487,2807.4,2806.0,3.68677215]
[1769372567802,4.45412487,2807.3,2806.0,3.68998084]
[1769372567998,4.45388242,2807.2,2806.0,0.00320869]
[1769372568197,3.69608909,2807.2,2806.0,0.00320869]
[1769372568896,3.69608909,2807.2,2805.2,2.90094016]
[1769372568897,1.33030175,2806.8,2805.2,3.68677215]
[1769372569097,1.33030175,2806.8,2805.2,5.77677215]
[1769372569098,8.14452106,2806.7,2805.2,5.77677215]
[1769372569300,8.14452106,2806.6,2805.2,5.77677215]
[1769372569494,0.28966802,2806.7,2803.8,1.7892129]
[1769372569798,0.28966802,2806.7,2802.2,14.1897516]
[1769372569799,0.17856,2803.6,2802.3,3.84995534]
[1769372569996,1.33030175,2803.4,2802.3,3.8528805]
[1769372570205,7.03118053,2803.3,2801.3,4.13720448]
[1769372570494,2.10086931,2803.1,2800.4,3.564]
[1769372570701,2.27949931,2802.6,2800.6,3.84995534]
[1769372570901,1.33030175,2802.3,2800.6,3.84995534]
[1769372571104,1.33030175,2801.9,2800.6,3.84995534]
[1769372571395,1.33030175,2801.9,2800.1,3.84995534]
[1769372571396,2.596,2801.8,2800.1,3.84995534]
[1769372571602,1.33030175,2801.4,2800.1,3.84995534]
[1769372572196,1.33030175,2801.4,2799.6,3.84995534]
[1769372572398,1.33030175,2801.4,2799.6,3.85411049]
[1769372572592,0.00294861,2801.4,2799.6,3.85411049]
[1769372573504,2.091,2802.6,2800.1,3.83374367]
[1769372573707,2.091,2802.6,2800.3,3.83226936]
[1769372574007,2.091,2802.6,2800.5,3.83226936]
[1769372574008,2.092,2802.6,2800.5,3.83226936]
[1769372574301,2.092,2802.6,2800.7,3.83226936]
[1769372574506,0.00360636,2802.6,2800.7,3.83226936]
[1769372575498,2.092,2802.5,2800.7,3.83226936]
[1769372576495,0.00360636,2802.6,2800.7,3.83226936]
[1769372576701,2.09560636,2802.6,2800.7,3.83226936]
[1769372577101,2.27423636,2802.6,2800.7,3.83226936]
[1769372577800,0.18223636,2802.6,2800.7,3.83226936]
[1769372581599,0.00360636,2802.6,2800.7,3.83226936]
[1769372585513,0.00360636,2802.6,2800.7,4.01100936]
[1769372587718,0.00360636,2802.6,2800.9,3.78917536]
[1769372587913,0.00360636,2802.6,2801.1,3.78917536]
[1769372590921,0.00360636,2802.6,2801.3,3.78876203]
[1769372592616,0.00360636,2802.6,2801.3,4.08001809]
[1769372596421,0.1786,2803.0,2801.3,4.08001809]
[1769372597322,4.79903112,2802.9,2801.3,4.08001809]
[1769372597524,4.79903112,2802.8,2801.3,4.08001809]
[1769372597723,2.24787325,2803.0,2801.3,4.08001809]
[1769372597917,4.79890928,2802.9,2801.3,4.08001809]
[1769372598120,4.79890928,2802.8,2801.3,4.08001809]
[1769372598315,6.8832827,2802.7,2801.3,4.08001809]
[1769372598519,4.81698703,2802.6,2801.3,4.08001809]
[1769372599112,4.81698703,2802.5,2801.3,4.08001809]
[1769372599318,6.90223463,2802.4,2801.3,4.08001809]
[1769372599620,0.97938726,2802.3,2801.3,4.08001809]
[1769372599825,2.06629567,2802.5,2801.3,4.08001809]
[1769372600122,21.73004554,2802.7,2801.4,1.33030175]
[1769372600318,6.32539006,2803.2,2801.4,1.33030175]
[1769372600319,3.8565517,2804.5,2802.4,1.50893175]
[1769372600521,3.8565517,2804.4,2802.5,1.33030175]
[1769372600722,4.0350617,2804.4,2802.6,5.665]
[1769372600921,4.0350617,2804.4,2802.7,3.571]
[1769372600922,9.85654653,2804.3,2802.7,3.571]
[1769372601129,3.8565517,2804.2,2802.8,5.665]
[1769372601418,3.86117868,2804.2,2802.8,0.00390513]
[1769372601624,3.8565517,2804.0,2802.8,0.00390513]
[1769372605334,5.99999483,2803.9,2802.8,0.00390513]
[1769372606132,5.99999483,2803.9,2802.9,0.00380556]
[1769372606638,0.00462698,2804.2,2802.9,0.00380556]
[1769372606838,5.99999483,2804.1,2802.9,0.00380556]
[1769372608231,5.99999483,2804.1,2802.8,0.00390513]
[1769372608232,3.8565517,2804.0,2802.8,0.00390513]
[1769372608437,3.8565517,2804.0,2802.8,2.09790513]
[1769372609329,3.8565517,2803.8,2802.8,2.09690513]
[1769372610339,3.8565517,2803.6,2802.8,2.09690513]
[1769372611740,3.8565517,2803.6,2802.8,0.00390513]
[1769372611935,3.8565517,2803.6,2802.5,2.093]
[1769372612136,9.85654653,2803.5,2802.5,2.093]
[1769372612337,3.8565517,2803.5,2801.6,0.17869]
[1769372612537,3.8565517,2803.3,2802.0,3.57]
[1769372612938,3.8565517,2803.3,2802.0,3.57293227]
[1769372613539,3.85509386,2803.1,2802.0,0.00293227]
[1769372613735,4.03372386,2802.5,2800.1,3.57]
[1769372613934,3.85509386,2802.3,2800.2,2.093]
[1769372614137,3.85509386,2802.1,2800.2,2.093]
[1769372614644,3.85925097,2802.1,2800.2,2.09734726]
[1769372615243,3.85509386,2801.9,2800.2,0.00434726]
[1769372615740,3.85509386,2801.7,2800.3,2.094]
[1769372615939,3.85509386,2801.7,2800.2,0.00434726]
[1769372615940,3.85509386,2801.5,2800.2,0.00434726]
[1769372617747,3.85509386,2801.3,2800.2,0.00434726]
[1769372617947,3.85509386,2801.3,2799.9,2.094]
[1769372618149,3.85509386,2801.1,2799.9,2.094]
[1769372618749,3.85509386,2800.9,2799.9,2.094]
[1769372618942,3.85509386,2800.9,2799.9,2.09801808]
[1769372619942,5.99999483,2800.8,2799.9,2.09801808]
[1769372620144,3.85509386,2800.7,2799.3,2.094]
[1769372620840,3.85509386,2800.5,2798.6,0.17888]
[1769372621037,3.85509386,2800.5,2798.7,5.665]
[1769372623046,5.99999483,2800.4,2798.7,5.665]
[1769372623354,9.85508869,2800.4,2798.7,5.665]
[1769372623650,3.85509386,2800.3,2798.7,5.665]
[1769372623849,3.85509386,2800.3,2798.6,0.00376312]
[1769372624154,3.85509386,2800.1,2798.7,5.667]
[1769372624450,3.85827205,2800.1,2798.7,5.667]
[1769372626252,9.85508869,2800.0,2798.7,5.667]
[1769372626754,3.85509386,2799.9,2798.7,5.667]
[1769372627150,5.99999483,2799.8,2798.7,5.667]
[1769372627655,3.85509386,2799.7,2797.6,0.17894]
[1769372627851,3.85509386,2799.7,2797.7,5.667]
[1769372628152,5.99999483,2799.6,2797.7,5.95563306]
[1769372628754,5.99999483,2799.6,2797.7,5.95827008]
[1769372629457,5.99999483,2799.6,2798.1,0.17891]
[1769372630254,3.85509386,2799.5,2798.1,0.17891]
[1769372630647,9.85508869,2799.4,2797.7,0.29127008]
[1769372630852,3.85509386,2799.4,2797.8,3.573]
[1769372631053,9.85508869,2799.3,2797.8,5.668]
[1769372631351,3.85509386,2799.3,2797.8,5.668]
[1769372631850,5.99999483,2799.2,2798.0,0.17891]
[1769372632051,9.85508869,2799.8,2798.0,0.17891]
[1769372632944,9.85508869,2799.8,2798.1,0.17891]
[1769372633147,5.99999483,2799.8,2797.8,5.668]
[1769372633348,5.99999483,2799.8,2798.4,0.17889]
[1769372635552,5.99999483,2799.8,2798.6,0.17888]
[1769372635755,5.99999483,2799.8,2798.8,0.17886]
[1769372635956,5.99999483,2799.8,2798.9,2.096]
[1769372636160,5.99999483,2799.8,2799.0,3.573]
[1769372637359,5.98797932,2799.8,2799.0,3.573]
[1769372637561,0.00317819,2800.1,2799.3,0.17883]
[1769372638062,0.00317819,2800.1,2799.0,3.573]
[1769372639357,3.85509386,2801.3,2799.3,0.17883]
[1769372640452,3.85965307,2801.3,2799.3,0.17883]
[1769372640660,3.85965307,2801.3,2799.4,3.573]
[1769372640853,3.85965307,2801.3,2799.5,5.669]
[1769372643062,3.85775924,2800.9,2799.0,3.573]
[1769372643254,4.03650924,2800.7,2799.0,5.669]
[1769372643455,3.85775924,2800.5,2799.0,5.669]
[1769372644954,3.711284,2799.2,2796.4,12.16406957]
[1769372645158,1.33436166,2797.8,2795.8,2.49288418]
[1769372645361,0.37011582,2796.8,2793.7,2.096]
[1769372645663,0.37011582,2796.6,2793.7,2.38187202]
[1769372645961,0.37011582,2796.1,2793.7,0.00347048]
[1769372646155,4.30884522,2796.0,2793.7,0.00347048]
[1769372646361,0.00398281,2796.6,2793.8,5.67]
[1769372646562,0.37011582,2796.4,2793.7,0.00347048]
[1769372646763,0.35096942,2796.2,2793.7,0.00347048]
[1769372647064,4.41381198,2796.1,2793.7,0.00347048]
[1769372647361,0.35096942,2795.9,2793.2,3.83340001]
[1769372647562,0.35096942,2795.7,2793.2,3.83340001]
[1769372647866,0.35096942,2795.3,2793.2,0.00999376]
[1769372648068,0.35096942,2795.1,2793.2,0.00999376]
[1769372648361,2.096,2795.2,2793.2,3.8371902]
[1769372648658,0.35096942,2795.1,2793.2,0.01378395]
[1769372648856,0.29763795,2794.6,2791.9,6.47340625]
[1769372649056,0.29763795,2794.4,2791.9,6.47340625]
[1769372649257,2.679,2794.3,2792.0,3.82340625]
[1769372649460,1.33436166,2794.7,2792.0,3.82340625]
[1769372649662,2.097,2794.7,2792.0,3.82340625]
[1769372649965,0.29763795,2794.5,2792.2,3.82340625]
[1769372650263,0.29763795,2794.3,2792.0,0.00271021]
[1769372650465,0.29763795,2794.3,2792.0,3.82611646]
[1769372650663,0.29763795,2794.3,2789.9,3.85775923]
[1769372650961,0.29763795,2794.3,2790.0,3.85775923]
[1769372650962,1.33436166,2793.2,2790.0,3.85775923]
[1769372651163,2.097,2793.2,2790.0,3.85775923]
[1769372651465,1.33436166,2793.9,2790.2,3.85775923]
[1769372651668,0.1792,2793.6,2790.2,3.86135267]
[1769372651965,0.17921,2793.4,2790.2,3.86135267]
[1769372652169,5.675,2793.3,2790.4,3.85775923]
[1769372652362,1.33436166,2793.9,2790.4,3.85775923]
[1769372652562,0.1792,2793.6,2790.5,3.85775923]
[1769372652866,6.45221,2793.5,2790.6,3.85775924]
[1769372653057,0.17921,2793.5,2790.6,3.85775924]
[1769372653258,1.33436166,2794.1,2790.6,3.85775924]
[1769372653462,3.76066715,2794.7,2790.7,3.85775924]
[1769372653658,0.18266715,2794.7,2790.9,3.85775924]
[1769372653861,2.099,2794.6,2790.9,3.85775924]
[1769372654166,0.18266715,2794.7,2790.9,3.85775924]
[1769372654357,5.677,2794.6,2790.9,3.85775924]
[1769372654557,5.677,2794.5,2790.9,3.85775924]
[1769372654758,0.00353715,2794.7,2790.9,3.85775924]
[1769372654958,0.00353715,2794.7,2791.0,3.85775924]
[1769372655162,0.00353715,2794.7,2791.0,7.90967218]
[1769372655363,0.00353715,2794.7,2791.7,3.85775924]
[1769372656159,0.00353715,2794.7,2792.4,3.86263379]
[1769372656362,0.179,2796.8,2793.1,3.86263379]
[1769372657065,1.33436166,2797.5,2793.8,3.86263379]
[1769372657370,0.17902,2796.5,2793.8,3.86263379]
[1769372657872,0.17905,2796.0,2793.8,3.86263379]
[1769372658264,2.099,2796.4,2793.8,3.86263379]
[1769372658572,0.17899,2796.9,2793.8,3.86263379]
[1769372658771,0.19337487,2796.7,2793.8,3.86263379]
[1769372660461,0.17901,2796.6,2793.8,3.86263379]
[1769372661673,0.01437487,2796.7,2793.8,3.86263379]
[1769372662267,0.17906,2795.8,2793.8,3.86263379]
[1769372662568,0.18122646,2796.7,2793.8,3.86263379]
[1769372662769,0.179,2796.7,2793.8,3.86263379]
[1769372662971,0.17903,2796.2,2793.8,3.86263379]
[1769372663969,0.17905,2796.0,2793.8,3.86263379]
[1769372664278,0.17907,2795.7,2793.8,3.86263379]
[1769372666579,0.17903,2796.3,2793.8,3.86263379]
[1769372667265,0.17904,2796.1,2793.8,3.86263379]
[1769372667471,1.84945108,2796.1,2793.8,3.86263379]
[1769372667668,0.17908,2795.5,2793.8,3.86263379]
[1769372667976,0.18332644,2795.5,2793.8,3.86263379]
[1769372668578,0.17908,2795.4,2793.8,3.86263379]
[1769372668981,1.85369752,2795.5,2793.8,3.86263379]
[1769372669183,0.17913,2794.8,2793.8,3.86263379]
[1769372669879,0.17909,2795.3,2793.8,3.86263379]
[1769372670470,1.85369752,2795.5,2793.3,3.82936055]
[1769372670672,1.85369752,2795.5,2792.4,0.00257221]
[1769372670673,0.17922,2793.3,2792.4,0.00257221]
[1769372670879,0.17924,2793.0,2792.4,0.00257221]
[1769372671176,0.17916,2794.2,2792.4,0.00257221]
[1769372671380,0.17917,2794.1,2792.4,0.00257221]
[1769372671677,3.90382143,2796.2,2792.4,0.00257221]
[1769372671877,0.1791,2795.1,2792.4,0.00257221]
[1769372672075,0.18329236,2795.1,2792.4,0.00257221]
[1769372672580,0.17911,2795.0,2792.4,0.00257221]
[1769372672786,0.17915,2794.4,2792.5,3.67865271]
[1769372672978,0.17915,2794.3,2792.5,3.67865271]
[1769372673580,0.1792,2793.6,2792.5,3.67865271]
[1769372674187,0.17924,2793.0,2792.0,3.67985658]
[1769372674380,0.1792,2793.6,2792.0,3.67985658]
[1769372674684,0.17922,2793.3,2792.0,3.67985658]
[1769372675086,0.18265783,2793.3,2792.0,3.68355896]
[1769372675380,0.17923,2793.1,2792.0,3.68355896]
[1769372676081,0.00343783,2793.3,2792.0,3.68355896]
[1769372676285,0.17916,2794.3,2792.0,3.68355896]
[1769372676786,0.17916,2794.2,2792.0,3.68355896]
[1769372677080,2.05437035,2794.8,2792.0,3.68355896]
[1769372677279,4.41801756,2794.7,2792.0,3.68355896]
[1769372677483,0.0027782,2794.8,2792.0,3.68355896]
[1769372677685,0.0027782,2794.8,2792.4,3.66300803]
[1769372678287,0.0027782,2794.8,2792.9,3.66300803]
[1769372678584,0.0027782,2794.8,2793.1,3.66300803]
[1769372680886,1.34316682,2794.7,2793.1,3.66300803]
[1769372681785,0.0027782,2794.8,2793.1,3.66300803]
[1769372682684,0.0027782,2794.8,2793.2,3.581]
[1769372683486,3.39753717,2795.6,2793.2,3.581]
[1769372683487,1.34316682,2795.6,2793.2,3.581]
[1769372683791,4.43384189,2795.5,2793.2,3.581]
[1769372684085,2.05437035,2795.8,2793.2,3.581]
[1769372684291,4.43507463,2795.7,2793.6,1.34316682]
[1769372684488,0.00400362,2795.7,2793.6,1.34316682]
[1769372684692,0.00400362,2795.7,2793.2,3.581]
[1769372684887,0.00400362,2795.7,2793.3,3.54433154]
[1769372685686,0.17898,2797.0,2794.7,3.54433154]
[1769372685992,2.05437035,2796.8,2794.9,3.54433154]
[1769372686192,4.43648991,2796.7,2794.9,3.54433154]
[1769372686391,3.39753717,2796.4,2794.9,3.54433154]
[1769372686595,4.43648991,2796.3,2794.9,3.54840811]
[1769372686794,4.43648991,2796.2,2794.9,3.54840811]
[1769372687089,0.00434193,2796.4,2794.9,3.54840811]
[1769372687885,2.08403056,2797.1,2794.9,3.54840811]
[1769372688090,4.43445398,2797.0,2794.9,3.54840811]
[1769372688392,2.08403056,2797.5,2794.9,3.54840811]
[1769372688595,2.26299056,2797.4,2794.9,3.54840811]
[1769372688796,6.51570111,2797.3,2794.9,3.54840811]
[1769372688995,2.08403056,2797.1,2794.9,3.54840811]
[1769372689189,4.43167055,2797.0,2794.9,3.54840811]
[1769372689389,2.26300056,2797.2,2794.9,3.54840811]
[1769372689687,4.42954916,2797.1,2794.9,3.54840811]
[1769372689893,0.00378919,2797.3,2794.9,3.54840811]
[1769372692795,0.00378919,2797.3,2795.1,3.54433154]
[1769372694387,0.00378919,2797.3,2795.3,3.54433154]